[Event "*** Titled Tuesday Blitz"]
[Site "Chess.com"]
[Date "2019.06.04"]
[Round "7"]
[White "toog"]
[Black "ENEASZ"]
[Result "0-1"]
[WhiteElo "2335"]
[BlackElo "2511"]
[TimeControl "180+2"]
[EndTime "14:37:53 PDT"]
[Termination "ENEASZ won by resignation"]

1. e4 {[%clk 0:03:01.9]} 1... d6 {[%clk 0:03:00.5]} 2. d4 {[%clk 0:03:00]} 2...
Nf6 {[%clk 0:03:01.4]} 3. Nc3 {[%clk 0:03:01.6]} 3... e5 {[%clk 0:03:02.2]} 4.
Nge2 {[%clk 0:02:56.4]} 4... Be7 {[%clk 0:03:02.3]} 5. h3 {[%clk 0:02:56.2]}
5... O-O {[%clk 0:03:00.8]} 6. g4 {[%clk 0:02:56.7]} 6... c6 {[%clk 0:03:01.9]}
7. a4 {[%clk 0:02:55.3]} 7... Na6 {[%clk 0:02:58.2]} 8. Bg2 {[%clk 0:02:55]}
8... Nb4 {[%clk 0:02:57.8]} 9. O-O {[%clk 0:02:51.8]} 9... exd4 {[%clk
0:02:27.8]} 10. Nxd4 {[%clk 0:02:51.7]} 10... d5 {[%clk 0:02:27.3]} 11. e5
{[%clk 0:02:46.9]} 11... Nd7 {[%clk 0:02:27.8]} 12. f4 {[%clk 0:02:46.9]} 12...
Nc5 {[%clk 0:02:29.1]} 13. Qe2 {[%clk 0:02:40.8]} 13... a5 {[%clk 0:02:05.9]}
14. f5 {[%clk 0:02:33.2]} 14... f6 {[%clk 0:01:44.1]} 15. e6 {[%clk 0:02:28.2]}
15... b6 {[%clk 0:01:44.4]} 16. Bf4 {[%clk 0:02:26.8]} 16... Ba6 {[%clk
0:01:44.5]} 17. Qf2 {[%clk 0:02:21.3]} 17... Bxf1 {[%clk 0:01:42.7]} 18. Rxf1
{[%clk 0:02:23.2]} 18... Bd6 {[%clk 0:01:41.7]} 19. Be3 {[%clk 0:02:01.4]} 19...
Qe7 {[%clk 0:01:39]} 20. h4 {[%clk 0:01:58.4]} 20... Rac8 {[%clk 0:01:36.6]} 21.
g5 {[%clk 0:01:58.2]} 21... Be5 {[%clk 0:01:36.3]} 22. Qf3 {[%clk 0:01:54.8]}
22... Bxd4 {[%clk 0:01:33.8]} 23. Bxd4 {[%clk 0:01:54.8]} 23... Nxc2 {[%clk
0:01:35.1]} 24. Bf2 {[%clk 0:01:50.4]} 24... d4 {[%clk 0:01:34.6]} 25. Ne4
{[%clk 0:01:39.9]} 25... Nxa4 {[%clk 0:01:19.2]} 26. Qg4 {[%clk 0:01:16.8]}
26... Ne3 {[%clk 0:01:16.3]} 27. Bxe3 {[%clk 0:01:16.5]} 27... dxe3 {[%clk
0:01:17.2]} 28. gxf6 {[%clk 0:01:17.2]} 28... Rxf6 {[%clk 0:01:09.1]} 29. Nxf6+
{[%clk 0:01:16.1]} 29... Qxf6 {[%clk 0:01:11]} 30. Qxa4 {[%clk 0:01:16]} 30...
Qxb2 {[%clk 0:01:12.2]} 31. Qe4 {[%clk 0:01:12.3]} 31... Qf6 {[%clk 0:01:05]}
32. Qxe3 {[%clk 0:01:10.4]} 32... Qxh4 {[%clk 0:01:04.9]} 33. e7 {[%clk
0:01:06.6]} 33... Re8 {[%clk 0:01:03.7]} 34. f6 {[%clk 0:00:59.4]} 34... gxf6
{[%clk 0:01:01.7]} 35. Qe6+ {[%clk 0:00:59.4]} 35... Kg7 {[%clk 0:01:02.9]} 36.
Bxc6 {[%clk 0:00:38.3]} 36... Qg5+ {[%clk 0:01:03.5]} 37. Bg2 {[%clk 0:00:38.6]}
37... Qc5+ {[%clk 0:00:43.9]} 38. Rf2 {[%clk 0:00:34.3]} 38... Qxe7 {[%clk
0:00:43.6]} 39. Qxb6 {[%clk 0:00:30]} 39... Qe5 {[%clk 0:00:40.3]} 40. Qb7+
{[%clk 0:00:20.3]} 40... Re7 {[%clk 0:00:41]} 41. Qf3 {[%clk 0:00:21.4]} 41...
h5 {[%clk 0:00:41.6]} 42. Bh3 {[%clk 0:00:21.2]} 42... Kh6 {[%clk 0:00:42.4]}
43. Rg2 {[%clk 0:00:22]} 43... Rg7 {[%clk 0:00:42.1]} 44. Rxg7 {[%clk
0:00:20.4]} 44... Kxg7 {[%clk 0:00:44]} 45. Kg2 {[%clk 0:00:21.5]} 45... a4
{[%clk 0:00:42.2]} 46. Bf5 {[%clk 0:00:21.6]} 46... h4 {[%clk 0:00:32.3]} 47.
Qh5 {[%clk 0:00:20.8]} 47... Qg3+ {[%clk 0:00:31.9]} 48. Kf1 {[%clk 0:00:21.3]}
48... Qg5 {[%clk 0:00:32.8]} 49. Qh7+ {[%clk 0:00:21.8]} 49... Kf8 {[%clk
0:00:33.5]} 50. Be6 {[%clk 0:00:22.8]} 50... Qf4+ {[%clk 0:00:27.7]} 51. Kg2
{[%clk 0:00:23.5]} 51... Qg3+ {[%clk 0:00:25.4]} 52. Kh1 {[%clk 0:00:24.8]}
52... Qe1+ {[%clk 0:00:26.5]} 53. Kh2 {[%clk 0:00:25.5]} 53... Qe5+ {[%clk
0:00:25.2]} 54. Kh1 {[%clk 0:00:24.4]} 54... Qe1+ {[%clk 0:00:25.6]} 55. Kh2
{[%clk 0:00:25]} 55... Qe5+ {[%clk 0:00:26.2]} 56. Kh1 {[%clk 0:00:25.6]} 56...
Qxe6 {[%clk 0:00:27.5]} 57. Qxh4 {[%clk 0:00:24.9]} 57... Qd5+ {[%clk
0:00:23.6]} 58. Kh2 {[%clk 0:00:23.9]} 58... Qe5+ {[%clk 0:00:23.7]} 59. Kh1
{[%clk 0:00:24.8]} 59... Qd5+ {[%clk 0:00:20.8]} 60. Kh2 {[%clk 0:00:25.6]}
60... Qd6+ {[%clk 0:00:21.4]} 61. Kh1 {[%clk 0:00:26.2]} 61... a3 {[%clk
0:00:22.8]} 62. Qh8+ {[%clk 0:00:26.2]} 62... Kf7 {[%clk 0:00:23.8]} 63. Qh7+
{[%clk 0:00:27.3]} 63... Kf8 {[%clk 0:00:25.3]} 64. Qh8+ {[%clk 0:00:28.4]}
64... Kf7 {[%clk 0:00:27]} 65. Qh7+ {[%clk 0:00:29.5]} 65... Ke6 {[%clk
0:00:28.5]} 66. Qe4+ {[%clk 0:00:30]} 66... Kd7 {[%clk 0:00:29]} 67. Qb7+ {[%clk
0:00:30.8]} 67... Kd8 {[%clk 0:00:29.9]} 68. Qa8+ {[%clk 0:00:31.5]} 68... Ke7
{[%clk 0:00:31.2]} 69. Qb7+ {[%clk 0:00:31.1]} 69... Kf8 {[%clk 0:00:30.3]} 70.
Qa8+ {[%clk 0:00:32]} 70... Kf7 {[%clk 0:00:27.7]} 71. Qb7+ {[%clk 0:00:32.6]}
71... Kg6 {[%clk 0:00:28.2]} 72. Qe4+ {[%clk 0:00:33.1]} 72... f5 {[%clk
0:00:28.9]} 73. Qg2+ {[%clk 0:00:33]} 73... Kf6 {[%clk 0:00:30.2]} 74. Qc2
{[%clk 0:00:29.1]} 74... Qd5+ {[%clk 0:00:29.7]} 75. Kh2 {[%clk 0:00:30.1]}
75... Qe5+ {[%clk 0:00:29.4]} 76. Kh3 {[%clk 0:00:30.5]} 76... Qe3+ {[%clk
0:00:27.1]} 77. Kh4 {[%clk 0:00:30.8]} 77... Qe4+ {[%clk 0:00:27.4]} 78. Qxe4
{[%clk 0:00:31]} 78... fxe4 {[%clk 0:00:29.3]} 0-1

[Event "*** Titled Tuesday Blitz"]
[Site "Chess.com"]
[Date "2019.06.04"]
[Round "7"]
[White "Spring199"]
[Black "NM2019"]
[Result "1-0"]
[WhiteElo "2227"]
[BlackElo "2103"]
[TimeControl "180+2"]
[EndTime "14:38:16 PDT"]
[Termination "Spring199 won by resignation"]

1. d4 {[%clk 0:03:01.9]} 1... c5 {[%clk 0:03:00.4]} 2. d5 {[%clk 0:03:01.9]}
2... b5 {[%clk 0:03:01.5]} 3. Nf3 {[%clk 0:03:01.2]} 3... d6 {[%clk 0:03:02.3]}
4. e4 {[%clk 0:03:01.9]} 4... a6 {[%clk 0:03:03.4]} 5. c4 {[%clk 0:02:57.5]}
5... b4 {[%clk 0:03:04.5]} 6. g3 {[%clk 0:02:55.5]} 6... Nf6 {[%clk 0:03:05.4]}
7. Qc2 {[%clk 0:02:53.1]} 7... g6 {[%clk 0:03:03]} 8. Bg2 {[%clk 0:02:53.6]}
8... Bg7 {[%clk 0:03:04.1]} 9. O-O {[%clk 0:02:55.5]} 9... O-O {[%clk
0:03:04.9]} 10. a3 {[%clk 0:02:47.8]} 10... bxa3 {[%clk 0:03:05.7]} 11. Rxa3
{[%clk 0:02:45.9]} 11... e6 {[%clk 0:03:04.3]} 12. dxe6 {[%clk 0:02:27.1]} 12...
Bxe6 {[%clk 0:03:04.3]} 13. Rd1 {[%clk 0:02:27.5]} 13... Qc7 {[%clk 0:03:03.7]}
14. Bf4 {[%clk 0:02:27.1]} 14... Rd8 {[%clk 0:03:02.1]} 15. e5 {[%clk
0:02:08.2]} 15... Bf5 {[%clk 0:03:02.3]} 16. Qe2 {[%clk 0:01:55.4]} 16... dxe5
{[%clk 0:02:59.9]} 17. Nxe5 {[%clk 0:01:54.2]} 17... Ra7 {[%clk 0:02:40.6]} 18.
Nc6 {[%clk 0:01:47.5]} 18... Rxd1+ {[%clk 0:02:40]} 19. Qxd1 {[%clk 0:01:48]}
19... Qd7 {[%clk 0:02:23.9]} 20. Qxd7 {[%clk 0:01:41.1]} 20... Rxd7 {[%clk
0:02:23.2]} 21. Nc3 {[%clk 0:01:36.3]} 21... Nxc6 {[%clk 0:02:14.1]} 22. Bxc6
{[%clk 0:01:38.2]} 22... Rd4 {[%clk 0:01:58.3]} 23. Rxa6 {[%clk 0:01:34.1]}
23... h5 {[%clk 0:01:57.8]} 24. Ra8+ {[%clk 0:01:29]} 24... Kh7 {[%clk
0:01:58.5]} 25. Bb5 {[%clk 0:01:17.9]} 25... Ne4 {[%clk 0:01:54.4]} 26. Be3
{[%clk 0:01:10.6]} 26... Rd3 {[%clk 0:01:47.6]} 27. Nd5 {[%clk 0:00:58]} 27...
Bh3 {[%clk 0:01:39.5]} 28. Ra1 {[%clk 0:00:53.9]} 28... Bxb2 {[%clk 0:01:39.5]}
29. Rb1 {[%clk 0:00:53.9]} 29... Bd4 {[%clk 0:01:35.3]} 30. Nf4 {[%clk
0:00:53.6]} 30... Rxe3 {[%clk 0:01:23.5]} 31. Nxh3 {[%clk 0:00:53.6]} 31... Re2
{[%clk 0:01:18.4]} 32. Rf1 {[%clk 0:00:47.7]} 32... Nd2 {[%clk 0:00:57.5]} 33.
Rd1 {[%clk 0:00:45.1]} 33... Ne4 {[%clk 0:00:58.5]} 34. Rf1 {[%clk 0:00:45.2]}
34... Rb2 {[%clk 0:00:53]} 35. Bc6 {[%clk 0:00:44.3]} 35... Nd2 {[%clk
0:00:53.8]} 36. Rc1 {[%clk 0:00:44]} 36... Kh6 {[%clk 0:00:48.4]} 37. Bd5 {[%clk
0:00:44]} 37... f5 {[%clk 0:00:47.8]} 38. Kg2 {[%clk 0:00:28.2]} 38... g5 {[%clk
0:00:48.6]} 39. Re1 {[%clk 0:00:24.7]} 39... Rb6 {[%clk 0:00:38.4]} 40. f4
{[%clk 0:00:19.7]} 40... g4 {[%clk 0:00:32.8]} 41. Ng5 {[%clk 0:00:20.1]} 41...
Rb2 {[%clk 0:00:19.8]} 42. Re6+ {[%clk 0:00:19.6]} 42... Kg7 {[%clk 0:00:21]}
43. Re2 {[%clk 0:00:19.7]} 43... Nxc4 {[%clk 0:00:18.5]} 44. Bxc4 {[%clk
0:00:19.1]} 44... Rb4 {[%clk 0:00:16.2]} 45. Ne6+ {[%clk 0:00:16.5]} 45... Kf6
{[%clk 0:00:16.6]} 46. Nxd4 {[%clk 0:00:18.4]} 46... cxd4 {[%clk 0:00:16.4]} 47.
Rc2 {[%clk 0:00:20.3]} 47... Ke7 {[%clk 0:00:16.2]} 48. Bd3 {[%clk 0:00:20.3]}
48... Kd6 {[%clk 0:00:15.6]} 49. Bxf5 {[%clk 0:00:20.6]} 49... Kd5 {[%clk
0:00:17]} 50. Kf2 {[%clk 0:00:20.2]} 50... Rb3 {[%clk 0:00:17.6]} 51. Ke2 {[%clk
0:00:19.7]} 51... Re3+ {[%clk 0:00:17.6]} 52. Kd2 {[%clk 0:00:20.3]} 52... Rf3
{[%clk 0:00:19]} 53. Bd3 {[%clk 0:00:19.8]} 53... Rf2+ {[%clk 0:00:19.9]} 54.
Be2 {[%clk 0:00:19.5]} 54... Rxh2 {[%clk 0:00:21.3]} 55. Rc8 {[%clk 0:00:19.4]}
55... Rg2 {[%clk 0:00:21.1]} 56. f5 {[%clk 0:00:15.7]} 56... Rxg3 {[%clk
0:00:20.5]} 57. f6 {[%clk 0:00:16.3]} 57... Ke6 {[%clk 0:00:21.7]} 58. Rc6+
{[%clk 0:00:16.5]} 58... Kf7 {[%clk 0:00:19.8]} 59. Bc4+ {[%clk 0:00:17]} 59...
Kg6 {[%clk 0:00:20]} 60. f7+ {[%clk 0:00:17.7]} 60... Kg7 {[%clk 0:00:21.2]} 61.
Rg6+ {[%clk 0:00:17.8]} 61... Kh7 {[%clk 0:00:19.6]} 62. f8=Q {[%clk 0:00:18.2]}
62... Kxg6 {[%clk 0:00:19.9]} 63. Bd3+ {[%clk 0:00:17]} 63... Kg5 {[%clk
0:00:20.8]} 64. Qe7+ {[%clk 0:00:17.5]} 64... Kf4 {[%clk 0:00:21.1]} 65. Qd6+
{[%clk 0:00:16]} 65... Kf3 {[%clk 0:00:22.2]} 66. Be4+ {[%clk 0:00:16.7]} 66...
Kf2 {[%clk 0:00:23.3]} 67. Qf4+ {[%clk 0:00:16.4]} 67... Rf3 {[%clk 0:00:23.3]}
68. Bxf3 {[%clk 0:00:16.7]} 68... gxf3 {[%clk 0:00:24.5]} 69. Qxd4+ {[%clk
0:00:18.2]} 69... Kg2 {[%clk 0:00:25.8]} 70. Ke1 {[%clk 0:00:18.4]} 70... h4
{[%clk 0:00:26.6]} 71. Qf2+ {[%clk 0:00:19.4]} 71... Kh3 {[%clk 0:00:27.5]} 72.
Qxf3+ {[%clk 0:00:19.6]} 72... Kh2 {[%clk 0:00:28.9]} 73. Qg4 {[%clk 0:00:20.3]}
73... h3 {[%clk 0:00:29.9]} 74. Kf2 {[%clk 0:00:21.4]} 1-0

[Event "*** Titled Tuesday Blitz"]
[Site "Chess.com"]
[Date "2019.06.04"]
[Round "7"]
[White "ChessWeebs"]
[Black "Polish_fighter3000"]
[Result "1/2-1/2"]
[WhiteElo "2795"]
[BlackElo "3009"]
[TimeControl "180+2"]
[EndTime "14:41:42 PDT"]
[Termination "Game drawn by 50-move rule"]

1. d4 {[%clk 0:03:01.9]} 1... e6 {[%clk 0:03:01.2]} 2. Nf3 {[%clk 0:03:02.2]}
2... Nf6 {[%clk 0:03:01.5]} 3. c4 {[%clk 0:03:00.7]} 3... b6 {[%clk 0:03:01.9]}
4. g3 {[%clk 0:03:01.8]} 4... Ba6 {[%clk 0:03:02.8]} 5. Qa4 {[%clk 0:03:02.7]}
5... Bb7 {[%clk 0:03:02.4]} 6. Bg2 {[%clk 0:03:03.7]} 6... c5 {[%clk 0:03:03.1]}
7. dxc5 {[%clk 0:03:04.3]} 7... bxc5 {[%clk 0:03:05]} 8. O-O {[%clk 0:03:05.5]}
8... Be7 {[%clk 0:03:05.7]} 9. Nc3 {[%clk 0:03:06.9]} 9... O-O {[%clk
0:03:04.6]} 10. Rd1 {[%clk 0:03:08.2]} 10... Qb6 {[%clk 0:03:04.6]} 11. Rb1
{[%clk 0:03:05.1]} 11... Rd8 {[%clk 0:03:04]} 12. Be3 {[%clk 0:03:01.2]} 12...
Bc6 {[%clk 0:02:38.8]} 13. Qc2 {[%clk 0:02:56]} 13... Qb7 {[%clk 0:02:40]} 14.
a3 {[%clk 0:02:46.7]} 14... h6 {[%clk 0:02:34.5]} 15. h3 {[%clk 0:02:40.7]}
15... Na6 {[%clk 0:02:21.1]} 16. Bf4 {[%clk 0:02:19.9]} 16... d6 {[%clk
0:02:21.8]} 17. Rd2 {[%clk 0:01:44.9]} 17... Rd7 {[%clk 0:02:03.2]} 18. Rbd1
{[%clk 0:01:44.8]} 18... Rad8 {[%clk 0:02:04.7]} 19. h4 {[%clk 0:01:30.7]} 19...
Nc7 {[%clk 0:01:56.4]} 20. Ne1 {[%clk 0:01:24.1]} 20... Bxg2 {[%clk 0:01:42.9]}
21. Nxg2 {[%clk 0:01:26]} 21... d5 {[%clk 0:01:36.6]} 22. Bxc7 {[%clk
0:01:13.7]} 22... Rxc7 {[%clk 0:01:36.9]} 23. cxd5 {[%clk 0:01:14]} 23... exd5
{[%clk 0:01:38.8]} 24. e3 {[%clk 0:01:13.8]} 24... Rcc8 {[%clk 0:01:17.2]} 25.
Nf4 {[%clk 0:01:04.1]} 25... d4 {[%clk 0:01:17.3]} 26. exd4 {[%clk 0:01:06]}
26... cxd4 {[%clk 0:01:18.7]} 27. Rxd4 {[%clk 0:01:07.9]} 27... Rxd4 {[%clk
0:01:19.9]} 28. Rxd4 {[%clk 0:01:09.8]} 28... Bc5 {[%clk 0:01:21]} 29. Rd2
{[%clk 0:01:03.8]} 29... Re8 {[%clk 0:01:08.2]} 30. Ncd5 {[%clk 0:00:36.6]}
30... Re1+ {[%clk 0:01:07.8]} 31. Kg2 {[%clk 0:00:38.1]} 31... Bd6 {[%clk
0:01:09.1]} 32. f3 {[%clk 0:00:34.4]} 32... Bxf4 {[%clk 0:00:29.7]} 33. Nxf4
{[%clk 0:00:33.9]} 33... g5 {[%clk 0:00:31.2]} 34. hxg5 {[%clk 0:00:31.7]} 34...
hxg5 {[%clk 0:00:33.1]} 35. Re2 {[%clk 0:00:32.9]} 35... Ra1 {[%clk 0:00:19]}
36. Nd3 {[%clk 0:00:27.2]} 36... g4 {[%clk 0:00:17.8]} 37. Ne5 {[%clk
0:00:28.5]} 37... gxf3+ {[%clk 0:00:12.2]} 38. Nxf3 {[%clk 0:00:30.4]} 38... Qd5
{[%clk 0:00:11.7]} 39. Qd2 {[%clk 0:00:28.1]} 39... Rb1 {[%clk 0:00:07.2]} 40.
Qxd5 {[%clk 0:00:20.6]} 40... Nxd5 {[%clk 0:00:09.1]} 41. Nd4 {[%clk 0:00:21.8]}
41... Nb6 {[%clk 0:00:08.3]} 42. b3 {[%clk 0:00:22.8]} 42... Kg7 {[%clk
0:00:06.8]} 43. Kf3 {[%clk 0:00:23.9]} 43... Nd5 {[%clk 0:00:05.7]} 44. Re5
{[%clk 0:00:23]} 44... Nc3 {[%clk 0:00:06.4]} 45. Rc5 {[%clk 0:00:24.3]} 45...
Na2 {[%clk 0:00:04.6]} 46. b4 {[%clk 0:00:22.8]} 46... Nc1 {[%clk 0:00:04.7]}
47. Rc3 {[%clk 0:00:23.9]} 47... Na2 {[%clk 0:00:05.6]} 48. Rc2 {[%clk
0:00:23.2]} 48... Nc1 {[%clk 0:00:05.5]} 49. Ke3 {[%clk 0:00:24.2]} 49... Nb3
{[%clk 0:00:06.6]} 50. Nc6 {[%clk 0:00:25.1]} 50... a6 {[%clk 0:00:07.2]} 51.
Rc3 {[%clk 0:00:25.7]} 51... Re1+ {[%clk 0:00:06.1]} 52. Kf2 {[%clk 0:00:26.4]}
52... Rb1 {[%clk 0:00:05.8]} 53. Ke2 {[%clk 0:00:24.8]} 53... Nc1+ {[%clk
0:00:04.9]} 54. Kd2 {[%clk 0:00:25.8]} 54... Na2 {[%clk 0:00:06]} 55. Rc2 {[%clk
0:00:27.1]} 55... Rg1 {[%clk 0:00:07.2]} 56. Nb8 {[%clk 0:00:20.9]} 56... Rxg3
{[%clk 0:00:07.5]} 57. Nxa6 {[%clk 0:00:22.2]} 57... Rxa3 {[%clk 0:00:08.7]} 58.
b5 {[%clk 0:00:23.9]} 58... Rb3 {[%clk 0:00:09.3]} 59. Rxa2 {[%clk 0:00:24.7]}
59... Rxb5 {[%clk 0:00:10.8]} 60. Kc3 {[%clk 0:00:26.4]} 60... Rg5 {[%clk
0:00:12]} 61. Nb4 {[%clk 0:00:27.7]} 61... Kg6 {[%clk 0:00:13.3]} 62. Kd4 {[%clk
0:00:29.2]} 62... Rg4+ {[%clk 0:00:14.6]} 63. Kc5 {[%clk 0:00:30.5]} 63... f5
{[%clk 0:00:16]} 64. Nd5 {[%clk 0:00:31.8]} 64... Kg5 {[%clk 0:00:17.5]} 65. Kd6
{[%clk 0:00:32.9]} 65... Re4 {[%clk 0:00:18.3]} 66. Rg2+ {[%clk 0:00:33.5]}
66... Kh4 {[%clk 0:00:19.5]} 67. Nf6 {[%clk 0:00:34]} 67... Re1 {[%clk
0:00:19.3]} 68. Nd5 {[%clk 0:00:35]} 68... Re4 {[%clk 0:00:19.5]} 69. Rg8 {[%clk
0:00:36.1]} 69... f4 {[%clk 0:00:19.4]} 70. Nf6 {[%clk 0:00:36.3]} 70... Ra4
{[%clk 0:00:18.6]} 71. Ke5 {[%clk 0:00:35.3]} 71... f3 {[%clk 0:00:19.7]} 72.
Ne4 {[%clk 0:00:36.9]} 72... Ra7 {[%clk 0:00:14.1]} 73. Kf4 {[%clk 0:00:34.7]}
73... Rf7+ {[%clk 0:00:15.5]} 74. Ke3 {[%clk 0:00:36.3]} 74... Kh5 {[%clk
0:00:14.7]} 75. Kf2 {[%clk 0:00:34.8]} 75... Rf4 {[%clk 0:00:13.1]} 76. Nd2
{[%clk 0:00:33.9]} 76... Rg4 {[%clk 0:00:14.3]} 77. Rh8+ {[%clk 0:00:34.5]}
77... Kg6 {[%clk 0:00:15.6]} 78. Nxf3 {[%clk 0:00:36.2]} 78... Ra4 {[%clk
0:00:17.1]} 79. Kg3 {[%clk 0:00:37.6]} 79... Kf5 {[%clk 0:00:18.3]} 80. Rh5+
{[%clk 0:00:38.1]} 80... Kg6 {[%clk 0:00:19.4]} 81. Rd5 {[%clk 0:00:39.3]} 81...
Kf6 {[%clk 0:00:20.6]} 82. Nd2 {[%clk 0:00:39.7]} 82... Rb4 {[%clk 0:00:20.5]}
83. Kf3 {[%clk 0:00:40.5]} 83... Ke6 {[%clk 0:00:21.3]} 84. Rd8 {[%clk
0:00:41.5]} 84... Ke5 {[%clk 0:00:21.7]} 85. Re8+ {[%clk 0:00:40.9]} 85... Kd4
{[%clk 0:00:21.3]} 86. Ne4 {[%clk 0:00:40.4]} 86... Rb1 {[%clk 0:00:15.9]} 87.
Ng3 {[%clk 0:00:37.2]} 87... Rb2 {[%clk 0:00:13.8]} 88. Ne2+ {[%clk 0:00:37.1]}
88... Kd5 {[%clk 0:00:13.8]} 89. Nf4+ {[%clk 0:00:38.4]} 89... Kd4 {[%clk
0:00:14.4]} 90. Rd8+ {[%clk 0:00:39.9]} 90... Kc4 {[%clk 0:00:14.9]} 91. Ke4
{[%clk 0:00:41.4]} 91... Rb7 {[%clk 0:00:11.5]} 92. Rc8+ {[%clk 0:00:42.6]}
92... Kb5 {[%clk 0:00:12.8]} 93. Nd5 {[%clk 0:00:43.6]} 93... Rh7 {[%clk
0:00:14]} 94. Nc3+ {[%clk 0:00:41]} 94... Kb4 {[%clk 0:00:12.6]} 95. Kd4 {[%clk
0:00:41.3]} 95... Rh4+ {[%clk 0:00:13]} 96. Ne4 {[%clk 0:00:42.5]} 96... Kb5
{[%clk 0:00:12.4]} 97. Rc5+ {[%clk 0:00:40.4]} 97... Kb6 {[%clk 0:00:11.3]} 98.
Rg5 {[%clk 0:00:41.5]} 98... Kc6 {[%clk 0:00:12.1]} 99. Ke5 {[%clk 0:00:38.1]}
99... Kb5 {[%clk 0:00:11.6]} 100. Kd5 {[%clk 0:00:37.3]} 100... Kb6 {[%clk
0:00:06.7]} 101. Nd6 {[%clk 0:00:31.6]} 101... Rh1 {[%clk 0:00:06.7]} 102. Nc8+
{[%clk 0:00:28.6]} 102... Kc7 {[%clk 0:00:07.3]} 103. Ne7 {[%clk 0:00:27.5]}
103... Kb6 {[%clk 0:00:08.6]} 104. Kd6 {[%clk 0:00:27.5]} 104... Rd1+ {[%clk
0:00:08.5]} 105. Nd5+ {[%clk 0:00:29]} 105... Kb5 {[%clk 0:00:09.6]} 106. Rg4
{[%clk 0:00:30.6]} 106... Rd2 {[%clk 0:00:06.3]} 107. Rb4+ {[%clk 0:00:31.7]}
107... Ka5 {[%clk 0:00:07.5]} 108. Rb1 {[%clk 0:00:32.9]} 108... Rc2 {[%clk
0:00:08.1]} 109. Ne3 {[%clk 0:00:33.5]} 109... Rc3 {[%clk 0:00:08.8]} 110. Nf5
{[%clk 0:00:31.8]} 110... Ka4 {[%clk 0:00:09.1]} 111. Nd4 {[%clk 0:00:32.6]}
111... Rc8 {[%clk 0:00:09.7]} 112. Nc6 {[%clk 0:00:27.6]} 112... Ka3 {[%clk
0:00:10.5]} 113. Kd5 {[%clk 0:00:29]} 113... Rh8 {[%clk 0:00:06.7]} 114. Ne5
{[%clk 0:00:27.4]} 114... Rd8+ {[%clk 0:00:05]} 115. Kc4 {[%clk 0:00:28.7]}
115... Ka2 {[%clk 0:00:05.3]} 116. Rb7 {[%clk 0:00:29.4]} 116... Rc8+ {[%clk
0:00:05.1]} 117. Kd3 {[%clk 0:00:30.6]} 117... Rc1 {[%clk 0:00:04.5]} 118. Nc4
{[%clk 0:00:31.3]} 118... Ka1 {[%clk 0:00:05.8]} 119. Nd2 {[%clk 0:00:09.2]}
119... Ka2 {[%clk 0:00:05.5]} 120. Nc4 {[%clk 0:00:08.4]} 120... Ka1 {[%clk
0:00:05.5]} 121. Ra7+ {[%clk 0:00:10]} 121... Kb1 {[%clk 0:00:06.2]} 122. Ne3
{[%clk 0:00:10.6]} 122... Kb2 {[%clk 0:00:06.3]} 123. Rb7+ {[%clk 0:00:11]}
123... Ka2 {[%clk 0:00:06]} 124. Kd2 {[%clk 0:00:12.3]} 124... Rc8 {[%clk
0:00:05.1]} 125. Nd1 {[%clk 0:00:13.5]} 125... Ka3 {[%clk 0:00:05.3]} 126. Nc3
{[%clk 0:00:13.9]} 126... Rh8 {[%clk 0:00:06.7]} 127. Ne4 {[%clk 0:00:09.7]}
127... Ka4 {[%clk 0:00:05.6]} 128. Nc5+ {[%clk 0:00:09.5]} 1/2-1/2

[Event "*** Titled Tuesday Blitz"]
[Site "Chess.com"]
[Date "2019.06.04"]
[Round "8"]
[White "GadimbayliA"]
[Black "enriquetejedor"]
[Result "1-0"]
[WhiteElo "2839"]
[BlackElo "2549"]
[TimeControl "180+2"]
[EndTime "14:46:50 PDT"]
[Termination "GadimbayliA won by resignation"]

1. e4 {[%clk 0:03:01.9]} 1... c5 {[%clk 0:02:37.2]} 2. Nf3 {[%clk 0:02:57.4]}
2... d6 {[%clk 0:02:28.6]} 3. d4 {[%clk 0:02:56.7]} 3... cxd4 {[%clk 0:02:30.5]}
4. Nxd4 {[%clk 0:02:58]} 4... Nf6 {[%clk 0:02:32.4]} 5. Nc3 {[%clk 0:02:59.4]}
5... a6 {[%clk 0:02:30.8]} 6. g3 {[%clk 0:03:00.4]} 6... b5 {[%clk 0:02:12.4]}
7. Bg2 {[%clk 0:02:45.8]} 7... Bb7 {[%clk 0:02:13]} 8. a4 {[%clk 0:02:42.5]}
8... b4 {[%clk 0:02:00]} 9. Nd5 {[%clk 0:02:43.4]} 9... a5 {[%clk 0:01:26.2]}
10. O-O {[%clk 0:02:41.2]} 10... Nfd7 {[%clk 0:01:12.8]} 11. Bg5 {[%clk
0:02:36.2]} 11... h6 {[%clk 0:01:12.7]} 12. Ne6 {[%clk 0:02:36.9]} 12... hxg5
{[%clk 0:00:30.8]} 13. Ndc7+ {[%clk 0:02:23.4]} 13... Qxc7 {[%clk 0:00:31.4]}
14. Nxc7+ {[%clk 0:02:25.3]} 14... Kd8 {[%clk 0:00:33.3]} 15. Nxa8 {[%clk
0:02:26.6]} 15... Bxa8 {[%clk 0:00:35.2]} 16. Qd2 {[%clk 0:02:19]} 16... g4
{[%clk 0:00:34.3]} 17. c3 {[%clk 0:02:19.7]} 17... Nc6 {[%clk 0:00:31.5]} 18.
cxb4 {[%clk 0:02:20.2]} 18... Nxb4 {[%clk 0:00:33.1]} 19. Rac1 {[%clk
0:02:19.3]} 19... g6 {[%clk 0:00:34.2]} 20. Qd4 {[%clk 0:02:18.5]} 20... e5
{[%clk 0:00:33.1]} 21. Qa7 {[%clk 0:02:18]} 21... Bc6 {[%clk 0:00:34.4]} 22.
Qxa5+ {[%clk 0:02:18.6]} 1-0

[Event "*** Titled Tuesday Blitz"]
[Site "Chess.com"]
[Date "2019.06.04"]
[Round "8"]
[White "kintoho"]
[Black "SergeiAza"]
[Result "0-1"]
[WhiteElo "2548"]
[BlackElo "2767"]
[TimeControl "180+2"]
[EndTime "14:47:02 PDT"]
[Termination "SergeiAza won by resignation"]

1. e4 {[%clk 0:03:01.9]} 1... c5 {[%clk 0:03:00]} 2. c3 {[%clk 0:03:00.7]} 2...
d5 {[%clk 0:02:56.2]} 3. exd5 {[%clk 0:03:01.8]} 3... Qxd5 {[%clk 0:02:57.8]} 4.
d4 {[%clk 0:03:02.8]} 4... Nc6 {[%clk 0:02:54.2]} 5. Nf3 {[%clk 0:03:03.7]} 5...
Bf5 {[%clk 0:02:55.2]} 6. Be3 {[%clk 0:03:04.4]} 6... cxd4 {[%clk 0:02:54.6]} 7.
cxd4 {[%clk 0:03:05.6]} 7... Bxb1 {[%clk 0:02:55.3]} 8. Rxb1 {[%clk 0:03:02.6]}
8... e6 {[%clk 0:02:56.8]} 9. a3 {[%clk 0:02:57]} 9... Nf6 {[%clk 0:02:57.6]}
10. Bd3 {[%clk 0:02:53.5]} 10... Be7 {[%clk 0:02:56.7]} 11. O-O {[%clk
0:02:54.1]} 11... O-O {[%clk 0:02:57.4]} 12. Qe2 {[%clk 0:02:49.8]} 12... Rac8
{[%clk 0:02:56.4]} 13. Rbd1 {[%clk 0:02:50.2]} 13... Rfd8 {[%clk 0:02:56]} 14.
Bb1 {[%clk 0:02:46.8]} 14... Bf8 {[%clk 0:02:50.8]} 15. Rfe1 {[%clk 0:02:47.9]}
15... Ne7 {[%clk 0:02:46.4]} 16. Bg5 {[%clk 0:02:42.6]} 16... Ng6 {[%clk
0:02:42.1]} 17. Bxf6 {[%clk 0:02:43.1]} 17... gxf6 {[%clk 0:02:42.8]} 18. Be4
{[%clk 0:02:36.4]} 18... Qd7 {[%clk 0:02:21.5]} 19. d5 {[%clk 0:02:37.3]} 19...
exd5 {[%clk 0:02:16.6]} 20. Rxd5 {[%clk 0:02:33.5]} 20... Nf4 {[%clk 0:02:12.1]}
21. Rxd7 {[%clk 0:02:26.3]} 21... Nxe2+ {[%clk 0:02:11.6]} 22. Rxe2 {[%clk
0:02:27.6]} 22... Rxd7 {[%clk 0:02:12.7]} 23. g4 {[%clk 0:02:25.9]} 23... Re7
{[%clk 0:01:55.6]} 24. Nh4 {[%clk 0:02:19.5]} 24... b5 {[%clk 0:01:32.1]} 25.
Nf5 {[%clk 0:02:15.9]} 25... Re5 {[%clk 0:01:33]} 26. f3 {[%clk 0:02:15.1]}
26... a5 {[%clk 0:01:33.5]} 27. Kf2 {[%clk 0:02:09.4]} 27... Rd8 {[%clk
0:01:31.8]} 28. Kg3 {[%clk 0:02:09]} 28... Rc5 {[%clk 0:01:32.1]} 29. h3 {[%clk
0:01:51.8]} 29... Rc1 {[%clk 0:01:32.5]} 30. Bc6 {[%clk 0:01:46.6]} 30... Rxc6
{[%clk 0:01:31]} 0-1